[Event "*** Titled Tuesday Blitz"]
[Site "Chess.com"]
[Date "2021.02.02"]
[Round "7"]
[White "Sviridov_Valery"]
[Black "fmshawnrl123"]
[Result "1-0"]
[WhiteElo "2941"]
[BlackElo "2769"]
[TimeControl "180+1"]
[EndTime "11:18:55 PST"]
[Termination "Sviridov_Valery won by resignation"]

1. Nf3 {[%clk 0:03:00.9]} 1... Nf6 {[%clk 0:02:59.4]} 2. g3 {[%clk 0:03:00.3]}
2... d5 {[%clk 0:02:59.4]} 3. Bg2 {[%clk 0:03:00.8]} 3... e6 {[%clk 0:03:00.3]}
4. O-O {[%clk 0:03:00.8]} 4... Be7 {[%clk 0:03:01.2]} 5. c4 {[%clk 0:03:00.7]}
5... O-O {[%clk 0:03:02.1]} 6. d4 {[%clk 0:03:01.1]} 6... dxc4 {[%clk
0:03:02.4]} 7. Qa4 {[%clk 0:03:00.9]} 7... a6 {[%clk 0:03:02.5]} 8. Qxc4 {[%clk
0:03:00.8]} 8... b5 {[%clk 0:03:03.2]} 9. Qc2 {[%clk 0:03:01.4]} 9... Bb7 {[%clk
0:03:03.8]} 10. Bd2 {[%clk 0:03:01.6]} 10... Ra7 {[%clk 0:03:04.4]} 11. Rd1
{[%clk 0:03:00.6]} 11... Nc6 {[%clk 0:03:00.4]} 12. Bg5 {[%clk 0:02:58.9]} 12...
Qa8 {[%clk 0:02:57.3]} 13. Nc3 {[%clk 0:02:51.9]} 13... Nb4 {[%clk 0:02:35.2]}
14. Qd2 {[%clk 0:02:47.9]} 14... Nbd5 {[%clk 0:02:27.4]} 15. Nxd5 {[%clk
0:02:18.8]} 15... Bxd5 {[%clk 0:02:28.3]} 16. Bxf6 {[%clk 0:02:14.5]} 16... Bxf6
{[%clk 0:02:29.2]} 17. Rac1 {[%clk 0:02:14.2]} 17... Rd8 {[%clk 0:02:22.4]} 18.
Qf4 {[%clk 0:02:13.3]} 18... Bxa2 {[%clk 0:01:43]} 19. Ne5 {[%clk 0:01:55.9]}
19... Bxe5 {[%clk 0:01:40]} 20. Qxe5 {[%clk 0:01:55.6]} 20... Bd5 {[%clk
0:01:38.9]} 21. e4 {[%clk 0:01:56.1]} 21... Bb3 {[%clk 0:01:33.5]} 22. Rd3
{[%clk 0:01:53.5]} 22... Bc4 {[%clk 0:01:32.8]} 23. Rdc3 {[%clk 0:01:53.7]}
23... f6 {[%clk 0:01:10]} 24. Qc5 {[%clk 0:01:53.5]} 24... e5 {[%clk 0:00:28]}
25. d5 {[%clk 0:01:52.7]} 25... Qb8 {[%clk 0:00:26.5]} 26. Qe3 {[%clk 0:01:47]}
26... Qb6 {[%clk 0:00:10.8]} 27. b3 {[%clk 0:01:46.9]} 27... Qxe3 {[%clk
0:00:06.4]} 28. Rxe3 {[%clk 0:01:47.8]} 28... Bxb3 {[%clk 0:00:04.2]} 29. Rxb3
{[%clk 0:01:48.7]} 29... Rb8 {[%clk 0:00:03.7]} 30. Bf1 {[%clk 0:01:45.7]} 30...
Kf8 {[%clk 0:00:03.8]} 31. Rc6 {[%clk 0:01:43.4]} 31... Ke7 {[%clk 0:00:04.2]}
32. Rbc3 {[%clk 0:01:36.4]} 32... Kd8 {[%clk 0:00:03.8]} 33. Ra3 {[%clk
0:01:32.8]} 33... a5 {[%clk 0:00:02.9]} 34. Rc5 {[%clk 0:01:29.9]} 34... b4
{[%clk 0:00:01.1]} 35. Raxa5 {[%clk 0:01:28.9]} 35... Rxa5 {[%clk 0:00:02]} 36.
Rxa5 {[%clk 0:01:29.5]} 36... b3 {[%clk 0:00:02.9]} 37. Rb5 {[%clk 0:01:29.8]}
37... Rxb5 {[%clk 0:00:02.6]} 38. Bxb5 {[%clk 0:01:30.7]} 38... c6 {[%clk
0:00:02.7]} 39. dxc6 {[%clk 0:01:25.4]} 39... b2 {[%clk 0:00:02.8]} 40. Bd3
{[%clk 0:01:25.6]} 40... Kc7 {[%clk 0:00:03.7]} 41. Kf1 {[%clk 0:01:26.1]} 41...
Kxc6 {[%clk 0:00:04.3]} 42. Ke2 {[%clk 0:01:26.7]} 42... Kc5 {[%clk 0:00:05]}
43. Ke3 {[%clk 0:01:24.8]} 43... Kb4 {[%clk 0:00:04.6]} 44. Kd2 {[%clk 0:01:25]}
44... Kb3 {[%clk 0:00:04.2]} 45. Bb1 {[%clk 0:01:24.7]} 45... h6 {[%clk
0:00:02]} 46. h4 {[%clk 0:01:24.3]} 46... g5 {[%clk 0:00:01.8]} 47. h5 {[%clk
0:01:24.2]} 47... Kb4 {[%clk 0:00:02.1]} 48. Kc2 {[%clk 0:01:23.7]} 48... Kc4
{[%clk 0:00:02.5]} 49. Kxb2 {[%clk 0:01:23.1]} 49... Kd4 {[%clk 0:00:02.6]} 50.
Kb3 {[%clk 0:01:23.1]} 50... g4 {[%clk 0:00:02]} 51. Kb2 {[%clk 0:01:23.3]}
51... Kc4 {[%clk 0:00:01.7]} 52. Kc2 {[%clk 0:01:22.5]} 52... Kd4 {[%clk
0:00:01.9]} 53. Kd2 {[%clk 0:01:23]} 53... Kc4 {[%clk 0:00:02.4]} 54. Ke3 {[%clk
0:01:23.2]} 54... Kc3 {[%clk 0:00:02.5]} 55. Bd3 {[%clk 0:01:23.7]} 1-0

[Event "*** Titled Tuesday Blitz"]
[Site "Chess.com"]
[Date "2021.02.02"]
[Round "7"]
[White "BvsN"]
[Black "sokidze"]
[Result "0-1"]
[WhiteElo "2379"]
[BlackElo "2517"]
[TimeControl "180+1"]
[EndTime "11:18:56 PST"]
[Termination "sokidze won by resignation"]

1. c4 {[%clk 0:03:00.9]} 1... c5 {[%clk 0:02:59.9]} 2. Nf3 {[%clk 0:03:00.6]}
2... Nc6 {[%clk 0:03:00.1]} 3. e3 {[%clk 0:02:59.2]} 3... Nf6 {[%clk 0:02:56.3]}
4. Nc3 {[%clk 0:02:57.1]} 4... e5 {[%clk 0:02:55.3]} 5. d4 {[%clk 0:02:49]} 5...
e4 {[%clk 0:02:55.2]} 6. d5 {[%clk 0:02:45.9]} 6... exf3 {[%clk 0:02:52.4]} 7.
dxc6 {[%clk 0:02:45.7]} 7... dxc6 {[%clk 0:02:51.8]} 8. Qxd8+ {[%clk 0:02:36.6]}
8... Kxd8 {[%clk 0:02:51.8]} 9. gxf3 {[%clk 0:02:36.9]} 9... Kc7 {[%clk
0:02:51.4]} 10. Be2 {[%clk 0:02:29.4]} 10... Bd6 {[%clk 0:02:51.2]} 11. f4
{[%clk 0:02:26.6]} 11... Bf5 {[%clk 0:02:48.3]} 12. b3 {[%clk 0:02:25]} 12...
Rhe8 {[%clk 0:02:32.2]} 13. Bb2 {[%clk 0:02:21.9]} 13... Rad8 {[%clk 0:02:26.8]}
14. O-O-O {[%clk 0:02:15.1]} 14... Ng4 {[%clk 0:02:13.9]} 15. Rhf1 {[%clk
0:01:51.8]} 15... h5 {[%clk 0:01:48]} 16. h3 {[%clk 0:01:41.3]} 16... Nf6 {[%clk
0:01:36.4]} 17. Rg1 {[%clk 0:01:41.4]} 17... g6 {[%clk 0:01:27.1]} 18. Nb5+
{[%clk 0:01:33]} 18... cxb5 {[%clk 0:01:24.5]} 19. Bxf6 {[%clk 0:01:29.2]} 19...
Rd7 {[%clk 0:01:22.3]} 20. cxb5 {[%clk 0:01:21.2]} 20... Bxh3 {[%clk 0:01:15.7]}
21. Bc4 {[%clk 0:01:11.7]} 21... Be6 {[%clk 0:01:12.6]} 22. Rg5 {[%clk
0:01:06.4]} 22... Bxc4 {[%clk 0:00:50.3]} 23. bxc4 {[%clk 0:01:06.3]} 23... Re4
{[%clk 0:00:50.9]} 24. Rgd5 {[%clk 0:00:56.7]} 24... Rxc4+ {[%clk 0:00:50.5]}
25. Kb2 {[%clk 0:00:52.7]} 25... Rb4+ {[%clk 0:00:50.5]} 26. Kc2 {[%clk
0:00:50.3]} 26... Rxb5 {[%clk 0:00:46.5]} 27. Be5 {[%clk 0:00:33.6]} 27... Rb6
{[%clk 0:00:40.3]} 28. Kc3 {[%clk 0:00:24]} 28... Bxe5+ {[%clk 0:00:38.8]} 29.
fxe5 {[%clk 0:00:22.6]} 29... Rxd5 {[%clk 0:00:38.6]} 30. Rxd5 {[%clk
0:00:22.7]} 30... Rc6 {[%clk 0:00:34.3]} 31. e6 {[%clk 0:00:20.5]} 31... Rxe6
{[%clk 0:00:30.5]} 32. Kc4 {[%clk 0:00:20]} 32... b6 {[%clk 0:00:29.9]} 33. Rg5
{[%clk 0:00:19.6]} 33... Rf6 {[%clk 0:00:28.6]} 34. f4 {[%clk 0:00:19.5]} 34...
Kc6 {[%clk 0:00:27.4]} 35. Re5 {[%clk 0:00:17.9]} 35... Re6 {[%clk 0:00:27.3]}
36. Rg5 {[%clk 0:00:17.9]} 36... Rxe3 {[%clk 0:00:26.7]} 37. f5 {[%clk
0:00:18.5]} 37... Re5 {[%clk 0:00:23.5]} 0-1

[Event "*** Titled Tuesday Blitz"]
[Site "Chess.com"]
[Date "2021.02.02"]
[Round "7"]
[White "pavelalexandru07"]
[Black "rududuyk"]
[Result "0-1"]
[WhiteElo "2320"]
[BlackElo "2166"]
[TimeControl "180+1"]
[EndTime "11:18:56 PST"]
[Termination "rududuyk won on time"]

1. d4 {[%clk 0:02:54.4]} 1... e6 {[%clk 0:02:59.9]} 2. g3 {[%clk 0:02:44.2]}
2... f5 {[%clk 0:02:59.1]} 3. Bg2 {[%clk 0:02:42.4]} 3... Nf6 {[%clk 0:02:59.5]}
4. Nf3 {[%clk 0:02:42.4]} 4... Be7 {[%clk 0:02:59.8]} 5. O-O {[%clk 0:02:43]}
5... O-O {[%clk 0:03:00.2]} 6. c4 {[%clk 0:02:43.7]} 6... d6 {[%clk 0:03:00.5]}
7. Nc3 {[%clk 0:02:44.3]} 7... Ne4 {[%clk 0:03:01]} 8. Nd2 {[%clk 0:02:43.1]}
8... Nxc3 {[%clk 0:02:24]} 9. bxc3 {[%clk 0:02:39.7]} 9... e5 {[%clk 0:02:18.6]}
10. e4 {[%clk 0:02:34.7]} 10... Nc6 {[%clk 0:02:15.1]} 11. Bb2 {[%clk
0:02:11.6]} 11... f4 {[%clk 0:02:09.1]} 12. Rb1 {[%clk 0:01:56.5]} 12... g5
{[%clk 0:01:50]} 13. Ba1 {[%clk 0:01:44.3]} 13... Qe8 {[%clk 0:01:44.2]} 14. f3
{[%clk 0:01:31.3]} 14... fxg3 {[%clk 0:01:12.4]} 15. hxg3 {[%clk 0:01:29.5]}
15... Qh5 {[%clk 0:01:11.9]} 16. Nb3 {[%clk 0:01:10.8]} 16... Bh3 {[%clk
0:01:03.5]} 17. Qe2 {[%clk 0:01:03.4]} 17... Rf7 {[%clk 0:00:51]} 18. d5 {[%clk
0:00:50.2]} 18... Nb8 {[%clk 0:00:40.8]} 19. c5 {[%clk 0:00:17.5]} 19... Nd7
{[%clk 0:00:25.6]} 20. cxd6 {[%clk 0:00:14.1]} 20... cxd6 {[%clk 0:00:25.3]} 21.
c4 {[%clk 0:00:14.6]} 21... Raf8 {[%clk 0:00:23.2]} 22. Bxh3 {[%clk 0:00:13.2]}
22... Qxh3 {[%clk 0:00:22.7]} 23. Qg2 {[%clk 0:00:13.3]} 23... Qh5 {[%clk
0:00:19.4]} 24. g4 {[%clk 0:00:13.7]} 24... Qh6 {[%clk 0:00:16.3]} 25. Rbc1
{[%clk 0:00:13.8]} 25... Bd8 {[%clk 0:00:15.9]} 26. c5 {[%clk 0:00:03.3]} 26...
dxc5 {[%clk 0:00:15.3]} 27. Nd2 {[%clk 0:00:03.5]} 27... c4 {[%clk 0:00:13.7]}
28. Nxc4 {[%clk 0:00:03.4]} 28... b5 {[%clk 0:00:14.3]} 0-1

[Event "*** Titled Tuesday Blitz"]
[Site "Chess.com"]
[Date "2021.02.02"]
[Round "7"]
[White "salomez"]
[Black "Eternauta2400"]
[Result "0-1"]
[WhiteElo "2204"]
[BlackElo "2440"]
[TimeControl "180+1"]
[EndTime "11:18:56 PST"]
[Termination "Eternauta2400 won on time"]

1. e4 {[%clk 0:02:59.3]} 1... e5 {[%clk 0:02:57.9]} 2. Nf3 {[%clk 0:02:54.3]}
2... Nc6 {[%clk 0:02:57]} 3. Bc4 {[%clk 0:02:50.9]} 3... Nf6 {[%clk 0:02:55.9]}
4. d4 {[%clk 0:02:43.9]} 4... exd4 {[%clk 0:02:54.1]} 5. e5 {[%clk 0:02:43.4]}
5... d5 {[%clk 0:02:46.4]} 6. Bb5 {[%clk 0:02:38.8]} 6... Bb4+ {[%clk
0:02:40.2]} 7. c3 {[%clk 0:02:37.3]} 7... dxc3 {[%clk 0:02:39.4]} 8. bxc3 {[%clk
0:02:37.9]} 8... Ba5 {[%clk 0:02:35.8]} 9. exf6 {[%clk 0:02:37.4]} 9... Qxf6
{[%clk 0:02:34.8]} 10. O-O {[%clk 0:02:34.8]} 10... O-O {[%clk 0:02:34.3]} 11.
Bg5 {[%clk 0:02:31.8]} 11... Qd6 {[%clk 0:02:27.2]} 12. c4 {[%clk 0:02:15.4]}
12... dxc4 {[%clk 0:02:20.2]} 13. Qxd6 {[%clk 0:02:14.4]} 13... cxd6 {[%clk
0:02:19.7]} 14. Bxc4 {[%clk 0:02:15.3]} 14... h6 {[%clk 0:02:13.1]} 15. Be3
{[%clk 0:02:12.2]} 15... Ne5 {[%clk 0:02:11.2]} 16. Nxe5 {[%clk 0:02:10.3]}
16... dxe5 {[%clk 0:02:12.1]} 17. Nd2 {[%clk 0:02:08.1]} 17... a6 {[%clk
0:02:09.9]} 18. Nb3 {[%clk 0:01:56.4]} 18... b5 {[%clk 0:02:02.7]} 19. Nxa5
{[%clk 0:01:55]} 19... bxc4 {[%clk 0:02:00.7]} 20. Nxc4 {[%clk 0:01:55.9]} 20...
f5 {[%clk 0:01:48]} 21. Nxe5 {[%clk 0:01:52.5]} 21... f4 {[%clk 0:01:48.1]} 22.
Bc5 {[%clk 0:01:47.9]} 22... Rf5 {[%clk 0:01:47.3]} 23. Rfe1 {[%clk 0:01:48]}
23... Bb7 {[%clk 0:01:44.2]} 24. f3 {[%clk 0:00:55.7]} 24... Re8 {[%clk
0:01:38.4]} 25. Bd4 {[%clk 0:00:52.4]} 25... Rg5 {[%clk 0:01:30.4]} 26. a4
{[%clk 0:00:48.4]} 26... h5 {[%clk 0:01:27]} 27. Kf2 {[%clk 0:00:47.5]} 27... h4
{[%clk 0:01:25.3]} 28. Rab1 {[%clk 0:00:33.5]} 28... Ba8 {[%clk 0:01:05.2]} 29.
Rb6 {[%clk 0:00:31.8]} 29... h3 {[%clk 0:00:59.2]} 30. gxh3 {[%clk 0:00:30.9]}
30... Rh5 {[%clk 0:00:59.2]} 31. Ng4 {[%clk 0:00:18.2]} 31... Rd8 {[%clk
0:00:51.2]} 32. Rg1 {[%clk 0:00:10.4]} 32... Rxh3 {[%clk 0:00:42.9]} 33. Rb4
{[%clk 0:00:03.6]} 33... Rxf3+ {[%clk 0:00:40]} 34. Ke2 {[%clk 0:00:03.2]} 34...
Re8+ {[%clk 0:00:39.8]} 0-1

[Event "*** Titled Tuesday Blitz"]
[Site "Chess.com"]
[Date "2021.02.02"]
[Round "7"]
[White "LamaChampetre"]
[Black "ChelsieMonica"]
[Result "0-1"]
[WhiteElo "2222"]
[BlackElo "2385"]
[TimeControl "180+1"]
[EndTime "11:18:57 PST"]
[Termination "ChelsieMonica won on time"]

1. d4 {[%clk 0:03:00.9]} 1... Nf6 {[%clk 0:02:53.4]} 2. c4 {[%clk 0:02:58.5]}
2... c5 {[%clk 0:02:53.7]} 3. d5 {[%clk 0:02:58.4]} 3... e5 {[%clk 0:02:53.4]}
4. Nc3 {[%clk 0:02:57]} 4... d6 {[%clk 0:02:53.5]} 5. h3 {[%clk 0:02:56.6]} 5...
Be7 {[%clk 0:02:54.1]} 6. e4 {[%clk 0:02:56.5]} 6... O-O {[%clk 0:02:55]} 7. Be2
{[%clk 0:02:56.1]} 7... a6 {[%clk 0:02:54.3]} 8. g4 {[%clk 0:02:55.7]} 8... b5
{[%clk 0:02:48.1]} 9. cxb5 {[%clk 0:02:55]} 9... axb5 {[%clk 0:02:49]} 10. Bxb5
{[%clk 0:02:51.9]} 10... Ba6 {[%clk 0:02:46.2]} 11. Bxa6 {[%clk 0:02:47.2]}
11... Nxa6 {[%clk 0:02:47.1]} 12. Nge2 {[%clk 0:02:47.8]} 12... Nb4 {[%clk
0:02:45.2]} 13. O-O {[%clk 0:02:45.6]} 13... h5 {[%clk 0:02:43]} 14. f3 {[%clk
0:02:26.6]} 14... c4 {[%clk 0:02:39.9]} 15. Be3 {[%clk 0:02:24.2]} 15... Qd7
{[%clk 0:02:30.6]} 16. Ng3 {[%clk 0:02:18.4]} 16... g6 {[%clk 0:02:27.8]} 17.
Kh2 {[%clk 0:02:13.2]} 17... h4 {[%clk 0:02:15.9]} 18. Nh1 {[%clk 0:02:06.7]}
18... Rfb8 {[%clk 0:02:11.8]} 19. Nf2 {[%clk 0:01:56.8]} 19... Nh7 {[%clk
0:02:06.6]} 20. Qe2 {[%clk 0:01:45.7]} 20... Rc8 {[%clk 0:01:58.3]} 21. a3
{[%clk 0:01:42.9]} 21... Na6 {[%clk 0:01:57.6]} 22. f4 {[%clk 0:01:37.7]} 22...
exf4 {[%clk 0:01:56.6]} 23. Bxf4 {[%clk 0:01:35.4]} 23... Nc5 {[%clk 0:01:54.5]}
24. Qxc4 {[%clk 0:01:17.7]} 24... Ng5 {[%clk 0:01:45.2]} 25. Qe2 {[%clk
0:01:13.9]} 25... Rab8 {[%clk 0:01:37.2]} 26. Nd3 {[%clk 0:01:11.5]} 26... Nb3
{[%clk 0:01:32.6]} 27. Bxg5 {[%clk 0:01:07.9]} 27... Bxg5 {[%clk 0:01:31.1]} 28.
Rad1 {[%clk 0:01:02.5]} 28... Re8 {[%clk 0:01:23.3]} 29. Qf2 {[%clk 0:00:52.6]}
29... Rbc8 {[%clk 0:01:22.8]} 30. Nb4 {[%clk 0:00:40.6]} 30... Rc4 {[%clk
0:01:13.3]} 31. Nc6 {[%clk 0:00:38.8]} 31... Nc5 {[%clk 0:01:12.1]} 32. e5
{[%clk 0:00:29.6]} 32... dxe5 {[%clk 0:00:59.9]} 33. Rde1 {[%clk 0:00:16.8]}
33... Nd3 {[%clk 0:00:52.7]} 34. Qf3 {[%clk 0:00:12.6]} 34... Nxe1 {[%clk
0:00:51.2]} 35. Rxe1 {[%clk 0:00:13.5]} 35... Rf4 {[%clk 0:00:49.2]} 36. Qe2
{[%clk 0:00:12.3]} 36... e4 {[%clk 0:00:48.4]} 37. Kg2 {[%clk 0:00:08.5]} 37...
f5 {[%clk 0:00:45.4]} 38. Qc4 {[%clk 0:00:07.4]} 38... Kh7 {[%clk 0:00:44.4]}
39. d6 {[%clk 0:00:04.4]} 39... fxg4 {[%clk 0:00:43.6]} 0-1

[Event "*** Titled Tuesday Blitz"]
[Site "Chess.com"]
[Date "2021.02.02"]
[Round "7"]
[White "SGchess01"]
[Black "Rud_Makarian"]
[Result "0-1"]
[WhiteElo "2817"]
[BlackElo "2918"]
[TimeControl "180+1"]
[EndTime "11:19:01 PST"]
[Termination "Rud_Makarian won by resignation"]

1. e4 {[%clk 0:03:00.9]} 1... e5 {[%clk 0:03:00.6]} 2. Nf3 {[%clk 0:03:00.2]}
2... Nc6 {[%clk 0:03:01.1]} 3. Bb5 {[%clk 0:02:59.9]} 3... Nf6 {[%clk
0:03:01.4]} 4. O-O {[%clk 0:02:59.7]} 4... Nxe4 {[%clk 0:03:01.3]} 5. d4 {[%clk
0:02:59.4]} 5... Nd6 {[%clk 0:03:01.6]} 6. Bxc6 {[%clk 0:02:59.9]} 6... dxc6
{[%clk 0:03:02.5]} 7. dxe5 {[%clk 0:03:00.8]} 7... Nf5 {[%clk 0:03:03.1]} 8.
Qxd8+ {[%clk 0:03:01.2]} 8... Kxd8 {[%clk 0:03:04]} 9. h3 {[%clk 0:03:02.1]}
9... Be7 {[%clk 0:03:02.8]} 10. Nc3 {[%clk 0:03:02.4]} 10... Nh4 {[%clk
0:03:02.8]} 11. Nxh4 {[%clk 0:02:56.7]} 11... Bxh4 {[%clk 0:03:03.7]} 12. Be3
{[%clk 0:02:45.4]} 12... Be6 {[%clk 0:02:45.3]} 13. Rad1+ {[%clk 0:02:43.5]}
13... Kc8 {[%clk 0:02:45.9]} 14. b3 {[%clk 0:02:38.7]} 14... h5 {[%clk
0:02:44.6]} 15. Ne2 {[%clk 0:02:16.8]} 15... Be7 {[%clk 0:02:36.2]} 16. Nd4
{[%clk 0:02:12.7]} 16... Bd7 {[%clk 0:02:36.7]} 17. Rfe1 {[%clk 0:01:42]} 17...
c5 {[%clk 0:02:18.9]} 18. e6 {[%clk 0:01:42.1]} 18... fxe6 {[%clk 0:02:16.9]}
19. Nxe6 {[%clk 0:01:42.5]} 19... Bxe6 {[%clk 0:01:46.3]} 20. Bf4 {[%clk
0:01:41.8]} 20... Rd8 {[%clk 0:01:34.7]} 21. Rxd8+ {[%clk 0:01:39.1]} 21... Kxd8
{[%clk 0:01:33]} 22. Rxe6 {[%clk 0:01:40]} 22... Kd7 {[%clk 0:01:33.6]} 23. Re4
{[%clk 0:01:08.8]} 23... Bf6 {[%clk 0:01:28.1]} 24. Kf1 {[%clk 0:01:07.4]} 24...
Kc6 {[%clk 0:01:21.6]} 25. Ke2 {[%clk 0:01:07]} 25... b5 {[%clk 0:01:13.9]} 26.
Re6+ {[%clk 0:00:46.6]} 26... Kd5 {[%clk 0:00:53.1]} 27. Ra6 {[%clk 0:00:46]}
27... c6 {[%clk 0:00:53.2]} 28. Kd3 {[%clk 0:00:36.3]} 28... c4+ {[%clk
0:00:50.3]} 29. bxc4+ {[%clk 0:00:36.6]} 29... bxc4+ {[%clk 0:00:51.2]} 30. Ke2
{[%clk 0:00:37.3]} 30... Bd4 {[%clk 0:00:48.7]} 31. Be3 {[%clk 0:00:36.3]} 31...
Re8 {[%clk 0:00:20.7]} 32. Ra5+ {[%clk 0:00:27.9]} 32... c5 {[%clk 0:00:19.4]}
33. Rxa7 {[%clk 0:00:22.7]} 33... c3 {[%clk 0:00:17.2]} 34. Kd3 {[%clk
0:00:19.9]} 34... c4+ {[%clk 0:00:15.9]} 35. Ke2 {[%clk 0:00:17.9]} 35... Bxa7
{[%clk 0:00:16.3]} 0-1

[Event "*** Titled Tuesday Blitz"]
[Site "Chess.com"]
[Date "2021.02.02"]
[Round "7"]
[White "remi04"]
[Black "BabyBoss31"]
[Result "1-0"]
[WhiteElo "2619"]
[BlackElo "2346"]
[TimeControl "180+1"]
[EndTime "11:19:01 PST"]
[Termination "remi04 won by resignation"]

1. e4 {[%clk 0:03:00.9]} 1... c6 {[%clk 0:02:59.7]} 2. c4 {[%clk 0:03:00.4]}
2... d5 {[%clk 0:02:58.2]} 3. exd5 {[%clk 0:03:01.3]} 3... cxd5 {[%clk
0:02:58.7]} 4. cxd5 {[%clk 0:03:02.2]} 4... Nf6 {[%clk 0:02:59]} 5. Bb5+ {[%clk
0:03:02.2]} 5... Nbd7 {[%clk 0:02:57.7]} 6. Nf3 {[%clk 0:03:02]} 6... g6 {[%clk
0:02:43.9]} 7. O-O {[%clk 0:03:01.5]} 7... Bg7 {[%clk 0:02:43.6]} 8. d6 {[%clk
0:03:01.5]} 8... e6 {[%clk 0:02:27.5]} 9. d4 {[%clk 0:03:01.5]} 9... O-O {[%clk
0:02:27]} 10. Nc3 {[%clk 0:03:02.1]} 10... Nb6 {[%clk 0:02:12.7]} 11. Bf4 {[%clk
0:02:58.3]} 11... Nfd5 {[%clk 0:01:59.7]} 12. Be5 {[%clk 0:02:56.3]} 12... Bd7
{[%clk 0:01:28.7]} 13. Bd3 {[%clk 0:02:56]} 13... Bc6 {[%clk 0:01:25]} 14. Rc1
{[%clk 0:02:53.7]} 14... Nc8 {[%clk 0:00:55.2]} 15. Ne4 {[%clk 0:02:35.8]} 15...
f6 {[%clk 0:00:47.8]} 16. Bg3 {[%clk 0:02:34.8]} 16... f5 {[%clk 0:00:48.3]} 17.
Nc5 {[%clk 0:02:32.9]} 17... Re8 {[%clk 0:00:42.7]} 18. Re1 {[%clk 0:02:12.4]}
18... Nxd6 {[%clk 0:00:32.2]} 19. Nxe6 {[%clk 0:02:11.7]} 19... Qd7 {[%clk
0:00:29.2]} 20. Nxg7 {[%clk 0:02:11.1]} 20... Kxg7 {[%clk 0:00:28.9]} 21. Ne5
{[%clk 0:02:08.6]} 21... Qc7 {[%clk 0:00:24.1]} 22. Nxc6 {[%clk 0:02:04.5]}
22... bxc6 {[%clk 0:00:25]} 23. Be5+ {[%clk 0:02:04.8]} 23... Kf7 {[%clk
0:00:24.5]} 24. Qb3 {[%clk 0:02:03.5]} 24... Qd7 {[%clk 0:00:21.7]} 25. Qa3
{[%clk 0:01:55.1]} 25... Nb5 {[%clk 0:00:18]} 26. Qc5 {[%clk 0:01:54.7]} 26...
Rac8 {[%clk 0:00:17.3]} 27. a4 {[%clk 0:01:52.4]} 27... Nbc7 {[%clk 0:00:13.6]}
28. Qxa7 {[%clk 0:01:46.3]} 28... Ra8 {[%clk 0:00:11.6]} 29. Qc5 {[%clk
0:01:45.9]} 29... Ne6 {[%clk 0:00:10.9]} 30. Qa3 {[%clk 0:01:34.6]} 30... Qa7
{[%clk 0:00:09.6]} 31. Rxc6 {[%clk 0:01:32.7]} 31... Qxa4 {[%clk 0:00:09.7]} 32.
Qxa4 {[%clk 0:01:30.6]} 32... Rxa4 {[%clk 0:00:10.6]} 33. Bc4 {[%clk 0:01:29.3]}
33... Rd8 {[%clk 0:00:08.1]} 34. b3 {[%clk 0:01:28.3]} 34... Rb4 {[%clk
0:00:07.4]} 35. Bd6 {[%clk 0:01:22]} 35... Rxc4 {[%clk 0:00:02.3]} 36. bxc4
{[%clk 0:01:19]} 36... Nxd4 {[%clk 0:00:02.7]} 37. Rc5 {[%clk 0:01:06.9]} 37...
Rxd6 {[%clk 0:00:01]} 38. Rxd5 {[%clk 0:01:06.8]} 38... Rxd5 {[%clk 0:00:01.5]}
39. cxd5 {[%clk 0:01:07.7]} 39... Nb5 {[%clk 0:00:01.4]} 40. Rb1 {[%clk
0:01:07.3]} 40... Nd6 {[%clk 0:00:01.9]} 41. Rb6 {[%clk 0:01:06.6]} 41... Ke7
{[%clk 0:00:02.5]} 42. f3 {[%clk 0:01:05.9]} 42... Nf7 {[%clk 0:00:02]} 43. Rb7+
{[%clk 0:01:05.9]} 43... Kf6 {[%clk 0:00:02.4]} 44. Kf2 {[%clk 0:01:05.7]} 44...
h6 {[%clk 0:00:02.9]} 45. Ke3 {[%clk 0:01:05.5]} 45... Nd6 {[%clk 0:00:03.8]}
46. Rd7 {[%clk 0:01:05.5]} 46... Ke5 {[%clk 0:00:04.7]} 47. Rxd6 {[%clk
0:01:04.3]} 47... Kxd6 {[%clk 0:00:05.1]} 48. Kd4 {[%clk 0:01:05.2]} 48... g5
{[%clk 0:00:05.5]} 49. g3 {[%clk 0:01:05]} 49... h5 {[%clk 0:00:05.9]} 50. f4
{[%clk 0:01:03.3]} 50... h4 {[%clk 0:00:01]} 51. fxg5 {[%clk 0:01:01.5]} 51...
f4 {[%clk 0:00:01.5]} 52. gxf4 {[%clk 0:01:01.2]} 1-0